Workbook

Sheet Izdatki
B1: Proračun dogodka za [ime dogodka] | H1: IZDATKI
B3: SKUPAJ STROŠKI | G3: Predvideno | H3: Dejansko
G4: =SUM(C11,C19,C25,C32,G11,G19,G24) -> 882.00 € | H4: =SUM(D11,D19,D25,D32,H11,H19,H24) -> 333.00 €
B6: Prizorišče | C6: Predvideno | D6: Dejansko | F6: Pijača in prigrizki | G6: Predvideno | H6: Dejansko
B7: Stroški najema sobe in dvorane | C7: 500.00 € | F7: Hrana
B8: Osebje na prizorišču | F8: Pijača | G8: 20.00 €
B9: Oprema | F9: Prti | H9: 20.00 €
B10: Mize in stoli | F10: Osebje in napitnine
B11: Vsota | C11: =SUBTOTAL(109,Tabela1[Predvideno]) -> 500.00 € | D11: =SUBTOTAL(109,Tabela1[Dejansko]) -> 0.00 € | F11: Vsota | G11: =SUBTOTAL(109,Tabela3[Predvideno]) -> 20.00 € | H11: =SUBTOTAL(109,Tabela3[Dejansko]) -> 20.00 €
B13: Dekoracija | C13: Predvideno | D13: Dejansko | F13: Program | G13: Predvideno | H13: Dejansko
B14: Cvetje | C14: 200.00 € | D14: 300.00 € | F14: Izvajalci
B15: Sveče | F15: Govorci | G15: 30.00 €
B16: Osvetlitev | F16: Potovanje
B17: Baloni | F17: Hotel
B18: Papir | F18: Drugo
B19: Vsota | C19: =SUBTOTAL(109,Tabela4[Predvideno]) -> 200.00 € | D19: =SUBTOTAL(109,Tabela4[Dejansko]) -> 300.00 € | F19: Vsota | G19: =SUBTOTAL(109,Tabela5[Predvideno]) -> 30.00 € | H19: =SUBTOTAL(109,Tabela5[Dejansko]) -> 0.00 €
B21: Promocijski material | C21: Predvideno | D21: Dejansko | F21: Nagrade | G21: Predvideno | H21: Dejansko
B22: Grafika | F22: Manšete/plakete/trofeje
B23: Fotokopiranje/tiskanje | C23: 20.00 € | F23: Darila | G23: 100.00 €
B24: Poštnina | F24: Vsota | G24: =SUBTOTAL(109,Tabela7[Predvideno]) -> 100.00 € | H24: =SUBTOTAL(109,Tabela7[Dejansko]) -> 0.00 €
B25: Vsota | C25: =SUBTOTAL(109,Tabela6[Predvideno]) -> 20.00 € | D25: =SUBTOTAL(109,Tabela6[Dejansko]) -> 0.00 €
B27: Razno | C27: Predvideno | D27: Dejansko
B28: Telefon | D28: 13.00 €
B29: Prevoz | C29: 12.00 €
B30: Pisarniška oprema
B31: Faks
B32: Vsota | C32: =SUBTOTAL(109,Tabela8[Predvideno]) -> 12.00 € | D32: =SUBTOTAL(109,Tabela8[Dejansko]) -> 13.00 €

Sheet Prihodek
B1: Proračun dogodka za [ime dogodka] | G1: PRIHODEK
B3: SKUPAJ DOHODEK | F3: Predvideno | G3: Dejansko
F4: =SUM(F11, F18, F25, F33) -> 1,936.00 € | G4: =SUM(G11,G18,G25, G33) -> 1,831.00 €
B6: VSTOPNINA
B7: Št. Predvidenih | C7: Dejansko Število | D7: Vrsta | E7: Cena | F7: Predviden Dohodek | G7: Dejanski Dohodek
B8: 300 | C8: 278 | D8: Odrasli @ | E8: 5.00 € | F8: =B8*E8 -> 1,500.00 € | G8: =C8*E8 -> 1,390.00 €
B9: 197 | C9: 195 | D9: Otroci @ | E9: 2.00 € | F9: =B9*E9 -> 394.00 € | G9: =C9*E9 -> 390.00 €
B10: 42 | C10: 51 | D10: Drugo @ | E10: 1.00 € | F10: =B10*E10 -> 42.00 € | G10: =C10*E10 -> 51.00 €
B11: Vsota | F11: =SUBTOTAL(109,Tabela9[Predviden Dohodek]) -> 1,936.00 € | G11: =SUBTOTAL(109,Tabela9[Dejanski Dohodek]) -> 1,831.00 €
B13: OGLASI V PROGRAMU
B14: Št. Predvidenih | C14: Dejansko Število | D14: Vrsta | E14: Cena | F14: Predviden Dohodek | G14: Dejanski Dohodek
B15: 12 | D15: Naslovnice @ | F15: =B15*E15 -> 0.00 € | G15: =C15*E15 -> 0.00 €
C16: 158 | D16: Polovica strani @ | F16: =B16*E16 -> 0.00 € | G16: =C16*E16 -> 0.00 €
B17: 4 | D17: Četrtina strani @ | F17: =B17*E17 -> 0.00 € | G17: =C17*E17 -> 0.00 €
B18: Vsota | F18: =SUBTOTAL(109,Tabela10[Predviden Dohodek]) -> 0.00 € | G18: =SUBTOTAL(109,Tabela10[Dejanski Dohodek]) -> 0.00 €
B20: RAZSTAVLJAVCI/PRODAJALCI
B21: Št. Predvidenih | C21: Dejansko Število | D21: Vrsta | E21: Cena | F21: Predviden Dohodek | G21: Dejanski Dohodek
B22: 23 | D22: Velika stojnica @ | F22: =B22*E22 -> 0.00 € | G22: =C22*E22 -> 0.00 €
B23: 354 | D23: Srednje velika stojnica @ | F23: =B23*E23 -> 0.00 € | G23: =C23*E23 -> 0.00 €
B24: 56 | D24: Mala stojnica @ | F24: =B24*E24 -> 0.00 € | G24: =C24*E24 -> 0.00 €
B25: Vsota | F25: =SUBTOTAL(109,Tabela11[Predviden Dohodek]) -> 0.00 € | G25: =SUBTOTAL(109,Tabela11[Dejanski Dohodek]) -> 0.00 €
B27: PRODAJA ELEMENTOV
B28: Št. Predvidenih | C28: Dejansko Število | D28: Vrsta | E28: Cena | F28: Predviden Dohodek | G28: Dejanski Dohodek
D29: Elementi @ | F29: =B29*E29 -> 0.00 € | G29: =C29*E29 -> 0.00 €
B30: 123 | D30: Elementi @ | F30: =B30*E30 -> 0.00 € | G30: =C30*E30 -> 0.00 €
D31: Elementi @ | F31: =B31*E31 -> 0.00 € | G31: =C31*E31 -> 0.00 €
B32: 13 | D32: Elementi @ | F32: =B32*E32 -> 0.00 € | G32: =C32*E32 -> 0.00 €
B33: Vsota | F33: =SUBTOTAL(109,Tabela12[Predviden Dohodek]) -> 0.00 € | G33: =SUBTOTAL(109,Tabela12[Dejanski Dohodek]) -> 0.00 €

Sheet Povzetek - Dobička in izgube
B1: Proračun dogodka za [ime dogodka] | G1: POVZETEK
G2: Dobička in izgube
C5: Predvideno | D5: Dejansko
B6: Dohodek skupaj | C6: =Prihodek!F4 -> 1,936.00 € | D6: =Prihodek!G4 -> 1,831.00 €
B7: Stroški skupaj | C7: =Izdatki!G4 -> 882.00 € | D7: =Izdatki!H4 -> 333.00 €
B9: Dobiček skupaj (ali izguba) | C9: =C6-C7 -> 1,054.00 € | D9: =D6-D7 -> 1,498.00 €
